bitfinex-derivatives/quotes_BTCF0:USTF0_20250127
["timestamp","ask_amount","ask_price","bid_price","bid_amount"]
[1738007275921,0.210836,99623.0,99622.0,1.501]
[1738007276126,0.210836,99623.0,99622.0,0.001]
[1738007276333,0.213836,99623.0,99622.0,0.001]
[1738007276530,0.200864,99614.0,99613.0,0.0001506]
[1738007276728,0.561664,99614.0,99613.0,0.0001506]
[1738007277031,0.200864,99614.0,99613.0,0.0001506]
[1738007277535,0.0559,99621.0,99613.0,0.0001506]
[1738007277831,0.200864,99614.0,99613.0,0.0001506]
[1738007278031,0.200864,99614.0,99613.0,0.2010166]
[1738007278330,0.00999,99623.0,99622.0,0.200848]
[1738007278528,0.00299,99623.0,99622.0,0.200848]
[1738007278929,0.00299,99623.0,99622.0,1.700848]
[1738007279735,0.00999,99623.0,99622.0,0.201848]
[1738007280237,0.01299,99623.0,99622.0,0.201848]
[1738007280836,0.213836,99623.0,99622.0,0.001]
[1738007281033,0.063201,99623.0,99613.0,0.0001506]
[1738007281235,0.3608,99614.0,99613.0,0.0001506]
[1738007281433,0.561664,99614.0,99613.0,0.0001506]
[1738007281634,0.200864,99614.0,99613.0,0.0001506]
[1738007282440,0.205864,99614.0,99613.0,0.0001506]
[1738007283747,0.207864,99614.0,99613.0,0.0001506]
[1738007284842,0.207864,99614.0,99613.0,0.2010166]
[1738007285026,0.007,99614.0,99613.0,0.2010166]
[1738007285935,0.007,99614.0,99613.0,0.5618166]
[1738007286240,0.00299,99623.0,99622.0,0.200848]
[1738007286443,0.11976258,99630.0,99629.0,0.200834]
[1738007286945,0.14877028,99630.0,99629.0,0.200834]
[1738007288144,0.14877028,99630.0,99629.0,1.700834]
[1738007288348,0.14877028,99630.0,99628.0,0.3608]
[1738007288641,0.200834,99629.0,99628.0,0.200834]
[1738007289030,0.200849,99622.0,99621.0,0.200848]
[1738007290648,0.202849,99622.0,99621.0,0.200848]
[1738007291446,0.209849,99622.0,99621.0,0.201848]
[1738007292934,0.209849,99622.0,99621.0,0.001]
[1738007294236,0.209849,99622.0,99621.0,0.20185]
[1738007294646,0.209849,99622.0,99621.0,0.001]
[1738007296345,0.200864,99614.0,99613.0,0.0001506]
[1738007296552,0.561664,99614.0,99613.0,0.0001506]
[1738007297537,0.565664,99614.0,99613.0,0.0001506]
[1738007298049,0.57220044,99614.0,99613.0,0.0001506]
[1738007298248,0.57420044,99614.0,99613.0,0.0001506]
[1738007301245,0.21340044,99614.0,99613.0,0.2010166]
[1738007302051,0.21340044,99614.0,99613.0,0.0001506]
[1738007303748,0.01253644,99614.0,99594.0,0.18006165]
[1738007303956,0.561703,99595.0,99594.0,0.18006165]
[1738007304451,0.561703,99595.0,99594.0,0.38096665]
[1738007304639,0.45844992,99604.0,99594.0,0.18006165]
[1738007304842,0.0001506,99604.0,99601.0,0.3608]
[1738007305146,0.0001506,99604.0,99603.0,0.200886]
[1738007305541,0.0001506,99604.0,99603.0,1.700886]
[1738007307449,0.0011506,99604.0,99603.0,1.700886]
[1738007313356,0.0011506,99604.0,99603.0,0.200886]
[1738007313562,0.0011506,99604.0,99597.0,0.18006165]
[1738007313563,0.3619506,99604.0,99597.0,0.18006165]
[1738007313773,0.200897,99598.0,99597.0,0.18006165]
[1738007314663,0.117,99603.0,99593.0,0.20241205]
[1738007314664,0.200901,99596.0,99595.0,0.2391525]
[1738007314960,0.200901,99596.0,99595.0,0.4400555]
[1738007315169,0.200901,99596.0,99595.0,0.2391525]
[1738007316558,0.561701,99596.0,99595.0,0.2391525]
[1738007316759,0.200913,99590.0,99589.0,0.29876491]
[1738007317850,0.200913,99590.0,99589.0,0.49967991]
[1738007318551,0.20748036,99590.0,99589.0,0.200915]
[1738007319055,0.20748036,99590.0,99589.0,0.002]
[1738007320467,0.36736736,99590.0,99571.0,2e-08]
[1738007320649,0.7216,99572.0,99527.0,0.1179]
[1738007320858,0.19369982,99581.0,99527.0,0.1179]
[1738007320859,0.561806,99544.0,99530.0,0.201033]
[1738007321166,0.561806,99544.0,99526.0,0.59114636]
[1738007321167,0.561806,99544.0,99543.0,0.04608798]
[1738007321364,0.201016,99539.0,99526.0,0.59114636]
[1738007321752,0.201016,99539.0,99538.0,0.44420109]
[1738007321948,0.201016,99539.0,99538.0,0.37103053]
[1738007322151,0.00653187,99539.0,99526.0,0.59114636]
[1738007322353,0.201028,99533.0,99526.0,0.59114636]
[1738007322554,0.559828,99533.0,99526.0,0.59114636]
[1738007323265,0.3608,99533.0,99520.0,0.649689]
[1738007323467,0.561852,99521.0,99520.0,0.649689]
[1738007323770,0.3608,99521.0,99509.0,0.201076]
[1738007323963,0.201072,99512.0,99509.0,0.201076]
[1738007324358,0.201072,99512.0,99510.0,0.201073]
[1738007324773,0.200072,99512.0,99510.0,0.201073]
[1738007324964,0.3608,99511.0,99506.0,0.00150711]
[1738007325151,0.20108,99507.0,99506.0,0.00150711]
[1738007325569,0.19808,99507.0,99506.0,0.00150711]
[1738007326161,0.3608,99511.0,99506.0,0.00350711]
[1738007326354,0.561873,99511.0,99507.0,0.20108]
[1738007326555,0.3608,99511.0,99506.0,0.00350711]
[1738007326868,0.20108,99507.0,99506.0,0.00350711]
[1738007327074,0.20108,99507.0,99506.0,0.00450711]
[1738007328171,0.20108,99507.0,99506.0,0.00250711]
[1738007328358,0.20108,99507.0,99506.0,1.50450711]
[1738007330660,0.36806534,99511.0,99506.0,1.50450711]
[1738007330863,0.00634534,99511.0,99509.0,0.201075]
[1738007331071,0.201038,99529.0,99524.0,0.201046]
[1738007331264,0.3608,99534.0,99524.0,0.201046]
[1738007331459,0.201043,99526.0,99524.0,0.201046]
[1738007331658,0.201043,99526.0,99524.0,1.701046]
[1738007332270,0.00721125,99525.0,99524.0,1.5]
[1738007332464,0.00015069,99525.0,99524.0,1.5]
[1738007332659,0.00415069,99525.0,99524.0,1.5]
[1738007333269,0.011217,99525.0,99524.0,1.5]
[1738007333467,0.00415069,99525.0,99524.0,1.5]
[1738007333664,0.00415069,99525.0,99524.0,1.8608]
[1738007333866,0.00615069,99525.0,99524.0,1.8608]
[1738007335173,0.14877028,99542.0,99541.0,0.201012]
[1738007337273,0.15594007,99550.0,99549.0,0.200995]
[1738007337476,0.14877028,99550.0,99549.0,0.200995]
[1738007338573,0.15377028,99550.0,99549.0,0.200995]
[1738007338771,0.16177028,99550.0,99549.0,0.201995]
[1738007339974,0.013,99550.0,99549.0,0.02102361]
[1738007340172,0.013,99550.0,99549.0,0.001]
[1738007340360,0.013,99550.0,99544.0,0.0589]
[1738007340361,0.3738,99550.0,99511.0,0.3608]
[1738007340564,0.561828,99533.0,99517.0,0.0071023]
[1738007340766,0.561828,99533.0,99526.0,0.201041]
[1738007340968,0.561828,99533.0,99532.0,0.20118069]
[1738007341163,0.561828,99533.0,99532.0,0.00015069]
[1738007341764,0.201063,99516.0,99502.0,0.059]
[1738007341964,0.3608,99520.0,99519.0,0.201056]
[1738007342163,0.36776001,99533.0,99510.0,0.1455804]
[1738007342470,0.201034,99530.0,99529.0,0.201035]
[1738007343363,0.62172535,99533.0,99513.0,1.50052]
[1738007343569,0.3608,99521.0,99513.0,1.5]
[1738007343861,0.61760151,99533.0,99532.0,0.20103]
[1738007344078,0.3698,99533.0,99532.0,0.20103]
[1738007344273,0.567828,99533.0,99532.0,0.20103]
[1738007344575,0.561828,99533.0,99532.0,0.20103]
[1738007344968,0.561828,99533.0,99521.0,0.10405679]
[1738007345167,0.568828,99533.0,99532.0,0.001]
[1738007346589,0.201066,99514.0,99513.0,1.5]
[1738007346887,0.561866,99514.0,99513.0,1.5]
[1738007347263,0.561866,99514.0,99513.0,1.51571351]
[1738007347469,0.561866,99514.0,99513.0,1.36488454]
[1738007347670,0.561866,99514.0,99513.0,1.56595254]
[1738007348072,0.7216,99514.0,99504.0,0.003]
[1738007348374,0.561884,99505.0,99504.0,0.003]
[1738007348879,0.201093,99501.0,99500.0,0.1]
[1738007349083,0.201093,99501.0,99500.0,0.01666431]
[1738007350966,0.201093,99501.0,99500.0,0.01766431]
[1738007351161,0.201093,99501.0,99500.0,0.01966431]
[1738007351376,0.3608,99502.0,99500.0,0.01966431]
[1738007351685,0.3608,99513.0,99501.0,0.01563502]
[1738007351865,0.201071,99512.0,99511.0,0.20107]
[1738007352579,0.20107,99512.0,99511.0,1.5]
[1738007352762,0.201079,99508.0,99507.0,0.201076]
[1738007353168,0.201079,99508.0,99507.0,0.21675366]
[1738007353568,0.79179306,99513.0,99512.0,0.20107]
[1738007353767,0.79083305,99513.0,99512.0,0.20107]
[1738007354885,0.58976105,99513.0,99512.0,0.20107]
[1738007355773,0.22896105,99513.0,99512.0,0.20107]
[1738007355973,0.14556105,99513.0,99512.0,0.20107]
[1738007356379,0.23088505,99513.0,99512.0,0.20825492]
[1738007356771,0.23088505,99513.0,99512.0,0.20107]
[1738007357077,0.23088505,99513.0,99512.0,0.21657545]
[1738007357283,0.23088505,99513.0,99512.0,0.21757545]
[1738007357484,0.23088505,99513.0,99512.0,0.21957545]
[1738007358170,0.23088505,99513.0,99512.0,1.71957545]
[1738007358677,0.04888396,99518.0,99512.0,1.51650545]
[1738007358877,0.04888396,99518.0,99517.0,0.20106]
[1738007359080,0.04888396,99518.0,99517.0,0.21656545]
[1738007361489,0.22880609,99518.0,99517.0,0.21656545]
[1738007362789,0.42986409,99518.0,99517.0,0.0312185]
[1738007363082,0.84186409,99518.0,99517.0,0.01571305]
[1738007363976,0.201092,99501.0,99500.0,0.01666431]
[1738007364175,0.922692,99501.0,99500.0,0.01666431]
[1738007364784,0.922692,99501.0,99500.0,0.03238177]
[1738007365176,0.922692,99501.0,99500.0,0.03438177]
[1738007365773,0.922692,99501.0,99500.0,0.03538177]
[1738007366081,0.93036485,99501.0,99500.0,0.03538177]
[1738007366297,0.201115,99490.0,99489.0,0.003]
[1738007366476,0.561915,99490.0,99489.0,0.003]
[1738007366667,0.3608,99490.0,99468.0,0.03290419]
[1738007366872,0.201145,99475.0,99468.0,0.03290419]
[1738007367090,0.561945,99475.0,99468.0,0.03290419]
[1738007367469,0.56951783,99475.0,99468.0,0.03290419]
[1738007367781,0.36837283,99475.0,99474.0,0.204147]
[1738007368574,0.3608,99475.0,99474.0,0.206147]
[1738007368884,0.3608,99475.0,99474.0,0.207147]
[1738007369287,0.3608,99475.0,99474.0,1.707147]
[1738007369680,0.00092,99484.0,99483.0,0.201129]
[1738007369984,0.3608,99492.0,99491.0,0.201113]
[1738007370374,0.36848432,99492.0,99491.0,0.201113]
[1738007370576,0.36848432,99492.0,99491.0,1.701113]
[1738007371084,0.37248432,99492.0,99491.0,1.701113]
[1738007372083,0.004,99492.0,99491.0,1.701113]
[1738007373292,0.005,99492.0,99491.0,1.701113]
[1738007374093,0.00015077,99496.0,99495.0,0.201105]
[1738007375484,0.00215077,99496.0,99495.0,0.201105]
[1738007376880,0.00715077,99496.0,99495.0,0.201105]
[1738007380795,0.00715077,99496.0,99495.0,1.71682056]
[1738007384691,0.00715077,99496.0,99495.0,2.07762056]
[1738007385187,0.11993785,99507.0,99506.0,0.201082]
[1738007385388,0.11993785,99507.0,99506.0,0.561882]
[1738007385990,0.11993785,99507.0,99506.0,2.061882]
[1738007386482,0.12793785,99507.0,99506.0,2.062882]
[1738007387583,0.13093785,99507.0,99506.0,2.062882]
[1738007387896,0.011,99507.0,99506.0,2.062882]
[1738007388392,0.011,99507.0,99506.0,2.07078413]
[1738007389296,0.57288,99507.0,99506.0,1.501]
[1738007389589,0.57288,99507.0,99497.0,0.00015077]
[1738007389590,0.201099,99498.0,99497.0,0.00015077]
[1738007389793,0.561899,99498.0,99497.0,0.00015077]
[1738007389995,0.561899,99498.0,99486.0,0.00150739]
[1738007389996,0.201121,99487.0,99486.0,0.00150739]
[1738007390186,0.201143,99476.0,99475.0,1.5]
[1738007390386,0.561943,99476.0,99475.0,1.5]
[1738007390786,0.3608,99487.0,99476.0,0.201143]
[1738007390993,0.3608,99487.0,99475.0,1.51572125]
[1738007390994,0.3608,99487.0,99486.0,0.201123]
[1738007391690,0.3608,99487.0,99486.0,0.21684425]
[1738007392599,0.3608,99487.0,99486.0,1.73235573]
[1738007392901,0.3608,99487.0,99486.0,1.73235637]
[1738007393890,0.00854333,99491.0,99486.0,1.53123337]
[1738007394188,0.00015077,99491.0,99490.0,0.201115]
[1738007394592,0.20126377,99491.0,99490.0,0.201115]
[1738007394986,0.20126377,99491.0,99490.0,0.21683625]
[1738007395194,0.00115077,99491.0,99490.0,0.21683625]
[1738007395390,0.00115077,99491.0,99490.0,0.23235803]
[1738007395788,0.00115077,99491.0,99490.0,1.73235803]
[1738007395994,0.00115077,99491.0,99490.0,1.71683625]
[1738007396192,0.20226377,99491.0,99490.0,1.71683625]
[1738007396392,0.00115077,99491.0,99490.0,1.71683625]
[1738007397110,0.00215077,99491.0,99490.0,1.71683625]
[1738007397291,0.00415077,99491.0,99490.0,1.71683625]
[1738007398098,7.7e-07,99491.0,99490.0,2.01683625]
[1738007398294,0.3608,99519.0,99490.0,1.81572125]
[1738007398503,0.0499,99523.0,99515.0,0.201064]
[1738007398696,0.3608,99521.0,99515.0,0.201064]
[1738007398899,0.3608,99521.0,99507.0,0.3608]
[1738007399107,0.36899046,99521.0,99520.0,0.201054]
[1738007400212,0.0499,99523.0,99522.0,0.20105]
[1738007400593,0.00015077,99524.0,99520.0,0.3608]
[1738007400912,0.00015077,99524.0,99523.0,0.201048]
[1738007401505,0.0522,99538.0,99537.0,0.20102]
[1738007401707,0.200987,99554.0,99543.0,0.201008]
[1738007401906,0.0522,99546.0,99543.0,0.201008]
[1738007402210,0.0522,99546.0,99544.0,0.201005]
[1738007402705,0.0522,99546.0,99543.0,1.50052]
[1738007402706,0.00015069,99555.0,99545.0,0.01567565]
[1738007402894,0.00015069,99555.0,99554.0,0.200985]
[1738007403103,0.00015069,99555.0,99554.0,0.2166594]
[1738007403799,0.00415069,99555.0,99554.0,0.200985]
[1738007404103,0.200996,99549.0,99543.0,1.701607]
[1738007404411,0.201002,99546.0,99540.0,0.201012]
[1738007404606,0.201007,99544.0,99540.0,0.201012]
[1738007405001,0.201011,99542.0,99540.0,0.201012]
[1738007405304,0.0536,99545.0,99524.0,0.00052]
[1738007405305,0.201021,99537.0,99524.0,0.00052]
[1738007405506,0.0536,99545.0,99523.0,0.00150688]
[1738007405507,0.201046,99524.0,99523.0,0.00150688]
[1738007405707,0.561846,99524.0,99523.0,0.00150688]
[1738007406106,0.3608,99524.0,99523.0,0.00150688]
[1738007407403,0.201059,99518.0,99516.0,0.201061]
[1738007407606,0.201064,99515.0,99514.0,0.00015069]
[1738007407821,0.561864,99515.0,99514.0,0.00015069]
[1738007408003,0.36980722,99524.0,99514.0,0.00015069]
[1738007408309,0.3608,99524.0,99523.0,0.201048]
[1738007409613,0.201061,99518.0,99517.0,0.20106]
[1738007410011,0.201052,99522.0,99520.0,0.201053]
[1738007410706,0.201058,99518.0,99517.0,1.50052]
[1738007410902,0.201058,99518.0,99517.0,1.503]
[1738007411299,0.0508,99521.0,99519.0,0.201055]
[1738007411502,0.0508,99521.0,99520.0,0.001]
[1738007411918,0.0508,99521.0,99519.0,0.201055]
[1738007413101,0.0508,99521.0,99517.0,1.50452]
[1738007413417,0.0508,99521.0,99520.0,0.204054]
[1738007413715,0.3608,99524.0,99523.0,0.201048]
[1738007414414,0.3608,99524.0,99523.0,1.701048]
[1738007415212,0.3608,99524.0,99523.0,1.704048]
[1738007415918,0.561846,99524.0,99523.0,1.704048]
[1738007416523,0.561846,99524.0,99523.0,1.705048]
[1738007420813,0.561846,99524.0,99523.0,1.504]
[1738007421011,0.561846,99524.0,99523.0,0.004]
[1738007422207,0.561846,99524.0,99523.0,0.205048]
[1738007422416,0.561846,99524.0,99523.0,0.004]
[1738007423215,0.201062,99516.0,99515.0,0.00052]
[1738007423523,0.3608,99516.0,99483.0,0.3608]
[1738007423823,0.201108,99494.0,99493.0,0.201109]
[1738007424416,0.201108,99494.0,99493.0,0.21682677]
[1738007424623,0.200108,99494.0,99493.0,0.21682677]
[1738007425325,0.200108,99494.0,99493.0,0.01571777]
[1738007425819,0.3608,99498.0,99488.0,0.00450743]
[1738007425820,0.201117,99489.0,99488.0,0.00450743]
[1738007426025,0.561917,99489.0,99488.0,0.00450743]
[1738007426521,0.561917,99489.0,99488.0,1e-08]
[1738007427023,0.199145,99475.0,99473.0,0.201149]
[1738007427320,0.558945,99475.0,99473.0,0.201149]
[1738007428223,0.558945,99475.0,99474.0,0.207147]
[1738007430113,0.36188001,99489.0,99474.0,0.006]
[1738007430319,0.201123,99488.0,99487.0,0.20112]
[1738007430517,0.3608,99496.0,99482.0,0.3608]
[1738007430821,0.3608,99496.0,99495.0,0.201105]
[1738007431020,0.201077,99509.0,99497.0,0.201101]
[1738007431216,0.3608,99511.0,99497.0,0.201101]
[1738007431417,0.00849341,99507.0,99497.0,0.201101]
[1738007431615,0.00849341,99507.0,99497.0,1.701101]
[1738007431821,0.3608,99511.0,99502.0,0.201091]
[1738007432127,0.3608,99511.0,99502.0,0.561891]
[1738007432616,0.201056,99520.0,99502.0,0.561891]
[1738007432819,0.201056,99520.0,99502.0,0.57736165]
[1738007433014,0.3608,99529.0,99502.0,0.57736165]
[1738007433216,0.201012,99541.0,99540.0,0.201012]
[1738007433418,0.3608,99551.0,99540.0,0.201012]
[1738007433617,0.4099,99560.0,99540.0,0.201012]
[1738007433836,0.200979,99558.0,99541.0,1.5]
[1738007434127,0.3608,99548.0,99541.0,1.5]
[1738007434715,0.22861757,99542.0,99541.0,1.5]
[1738007435020,0.22861757,99542.0,99532.0,0.00015069]
[1738007435225,0.561828,99533.0,99532.0,0.00015069]
[1738007435823,0.201064,99515.0,99514.0,0.00150706]
[1738007436127,0.561864,99515.0,99514.0,0.00150706]
[1738007437324,0.57039353,99515.0,99514.0,0.00150706]
[1738007437715,0.57239353,99515.0,99514.0,0.00150706]
[1738007437917,0.57239353,99515.0,99514.0,0.20257306]
[1738007438430,0.007,99515.0,99514.0,0.20257306]
[1738007439216,0.006,99515.0,99514.0,0.20257306]
[1738007439617,0.3668,99515.0,99514.0,1.70257306]
[1738007441426,0.3638,99515.0,99514.0,1.70257306]
[1738007441830,0.3638,99515.0,99514.0,0.00150706]
[1738007442025,0.201129,99483.0,99474.0,0.003]
[1738007442228,0.561929,99483.0,99474.0,0.003]
[1738007443120,0.57064459,99483.0,99474.0,0.003]
[1738007443321,0.201145,99475.0,99474.0,0.003]
[1738007443531,0.561945,99475.0,99474.0,0.003]
[1738007445429,0.3608,99475.0,99474.0,0.003]
[1738007445827,0.36588001,99483.0,99482.0,0.201131]
[1738007446229,0.3648,99483.0,99482.0,0.21685067]
[1738007446423,0.3608,99483.0,99482.0,0.21685067]
[1738007446624,0.3608,99483.0,99482.0,0.01571967]
[1738007447027,0.3638,99483.0,99482.0,0.01571967]
[1738007447227,0.4129,99483.0,99482.0,0.01571967]
[1738007447437,0.4129,99483.0,99474.0,0.003]
[1738007447438,0.201145,99475.0,99474.0,0.003]
[1738007447635,0.3608,99475.0,99449.0,0.06028998]
[1738007447937,0.201147,99474.0,99472.0,0.20115]
[1738007448121,0.201156,99470.0,99466.0,0.201163]
[1738007448326,0.20116,99468.0,99466.0,0.201163]
[1738007448522,0.37451415,99483.0,99467.0,0.3608]
[1738007448727,0.201135,99481.0,99478.0,0.201138]
[1738007449232,0.201135,99481.0,99479.0,1.5]
[1738007449930,0.202135,99481.0,99479.0,1.5]
[1738007450433,0.204135,99481.0,99479.0,1.5]
[1738007451025,0.204135,99481.0,99464.0,0.201167]
[1738007451026,0.201137,99480.0,99464.0,0.201167]
[1738007451231,0.3608,99470.0,99459.0,0.003]
[1738007451431,0.561974,99461.0,99459.0,0.003]
[1738007451635,0.561974,99461.0,99460.0,1.5]
[1738007453038,0.561974,99461.0,99460.0,1.503]
[1738007455634,0.3608,99461.0,99453.0,0.201188]
[1738007455835,0.201188,99454.0,99453.0,0.201188]
[1738007456352,0.3608,99459.0,99453.0,1.5]
[1738007456845,0.3608,99459.0,99458.0,0.20118]
[1738007457435,0.11985207,99469.0,99454.0,0.0471]
[1738007457436,0.3608,99468.0,99454.0,0.0471]
[1738007457634,0.11985207,99469.0,99467.0,0.201162]
[1738007458326,0.11985207,99469.0,99468.0,1.5]
[1738007459345,0.00015078,99470.0,99469.0,0.201158]
[1738007460137,0.00015078,99470.0,99469.0,1.701158]
[1738007461436,0.048,99490.0,99486.0,0.201123]
[1738007461636,0.51061732,99487.0,99486.0,0.201123]
[1738007461834,0.14981732,99487.0,99486.0,0.201123]
[1738007462144,0.14981732,99487.0,99486.0,0.561923]
[1738007462444,0.14981732,99487.0,99486.0,0.201123]
[1738007462741,0.14981732,99487.0,99478.0,0.3608]
[1738007462942,0.201136,99480.0,99478.0,0.3608]
[1738007463131,0.0962,99479.0,99478.0,0.3608]
[1738007463439,0.0962,99479.0,99477.0,0.00015078]
[1738007463440,0.201139,99478.0,99477.0,0.00015078]
[1738007464243,0.050285,99478.0,99437.0,0.050305]
[1738007464435,0.201192,99452.0,99450.0,0.201195]
[1738007464642,0.201192,99452.0,99436.0,0.3608]
[1738007464643,0.201181,99458.0,99457.0,0.201182]
[1738007465143,0.3608,99461.0,99460.0,0.201176]
[1738007465446,0.20116,99468.0,99455.0,0.3608]
[1738007465633,0.00015078,99470.0,99469.0,0.201158]
[1738007465832,0.20130678,99470.0,99469.0,0.201158]
[1738007466034,0.00015078,99470.0,99469.0,0.201158]
[1738007466843,0.1499681,99470.0,99469.0,0.202158]
[1738007467238,0.3511241,99470.0,99469.0,0.202158]
[1738007467634,0.3511241,99470.0,99469.0,0.001]
[1738007467844,0.201174,99461.0,99460.0,0.202176]
[1738007468048,0.3608,99462.0,99448.0,1.5]
[1738007468243,0.20118,99458.0,99457.0,0.201179]
[1738007468443,0.3608,99462.0,99461.0,0.201174]
[1738007468645,0.201171,99463.0,99462.0,0.201171]
[1738007469146,0.201174,99461.0,99460.0,0.002]
[1738007469649,0.201186,99455.0,99454.0,0.201187]
[1738007470551,0.3608,99463.0,99454.0,0.01572357]
[1738007470552,0.201176,99461.0,99454.0,0.01572357]
[1738007470738,0.201178,99460.0,99459.0,0.201176]
[1738007471250,0.201178,99460.0,99459.0,0.21689957]
[1738007471750,0.200178,99460.0,99459.0,0.01572357]
[1738007472450,0.200178,99460.0,99459.0,0.01672357]
[1738007472840,0.200178,99460.0,99459.0,0.01872357]
[1738007473040,0.200178,99460.0,99459.0,0.21990157]
[1738007473434,0.200178,99460.0,99459.0,1.71990157]
[1738007473734,0.200178,99460.0,99459.0,1.51872357]
[1738007474738,0.14981732,99461.0,99460.0,0.201176]
[1738007475549,0.35099132,99461.0,99460.0,0.201176]
[1738007475945,0.17987675,99465.0,99464.0,0.201167]
[1738007476347,0.17987675,99465.0,99460.0,0.003]
[1738007476551,0.201174,99461.0,99460.0,0.003]
[1738007477045,0.17987675,99465.0,99464.0,0.002]
[1738007477247,0.38104275,99465.0,99464.0,0.002]
[1738007478053,0.38104275,99465.0,99464.0,0.003]
[1738007478749,0.38104275,99465.0,99464.0,0.001]
[1738007479556,0.38104275,99465.0,99464.0,0.003]
[1738007479944,0.201166,99465.0,99464.0,0.003]
[1738007482544,0.15052887,99466.0,99446.0,0.201203]
[1738007482545,0.201206,99447.0,99446.0,0.201203]
[1738007482745,0.201206,99445.0,99444.0,0.003]
[1738007482951,0.562006,99445.0,99444.0,0.003]
[1738007483653,0.201206,99445.0,99444.0,1.503]
[1738007483844,0.201206,99445.0,99444.0,1.51872736]
[1738007484044,0.201206,99445.0,99444.0,1.72193536]
[1738007484255,0.200206,99445.0,99444.0,1.72193536]
[1738007484956,0.200206,99445.0,99444.0,1.72293536]
[1738007485145,0.20899698,99445.0,99444.0,1.72293536]
[1738007486364,0.47518001,99454.0,99453.0,0.20119]
[1738007486365,0.36188001,99454.0,99453.0,0.20119]
[1738007486655,0.04891186,99465.0,99464.0,0.201168]
[1738007487055,0.04891186,99465.0,99464.0,1.701168]
[1738007487751,0.04891186,99465.0,99464.0,2.061968]
[1738007488058,0.3608,99492.0,99472.0,0.201152]
[1738007488259,0.201132,99482.0,99472.0,0.201152]
[1738007488645,0.00910658,99483.0,99472.0,0.201152]
[1738007489046,0.36095078,99482.0,99472.0,0.201152]
[1738007489559,0.00015078,99482.0,99472.0,0.201152]
[1738007489751,0.00015078,99482.0,99473.0,0.20115]
[1738007489752,0.17987675,99474.0,99473.0,0.20115]
[1738007490354,0.17987675,99474.0,99464.0,1.501]
[1738007490544,0.561966,99465.0,99464.0,0.001]
[1738007490952,0.201168,99464.0,99463.0,0.00015078]
[1738007491847,0.201168,99464.0,99463.0,0.01587391]
[1738007492655,0.201168,99464.0,99463.0,0.21804391]
[1738007492863,0.201168,99464.0,99463.0,0.20232078]
[1738007493057,0.15953785,99467.0,99463.0,0.00115078]
[1738007493258,0.15953785,99467.0,99466.0,0.201164]
[1738007494859,0.15046965,99467.0,99466.0,0.201164]
[1738007495164,0.15046965,99467.0,99466.0,0.562964]
[1738007496556,0.15046965,99469.0,99466.0,1.8618]
[1738007496758,0.15046965,99469.0,99468.0,0.20116]
[1738007497467,0.15046965,99469.0,99468.0,1.70116]
[1738007497970,0.17987675,99477.0,99476.0,0.201143]
[1738007498164,0.07305275,99477.0,99476.0,0.561943]
[1738007498472,0.00015078,99482.0,99481.0,0.201133]
[1738007498770,0.00015078,99482.0,99481.0,1.701133]
[1738007500161,0.20128178,99482.0,99481.0,1.701133]
[1738007500575,0.20528178,99482.0,99481.0,1.701133]
[1738007501159,0.20528178,99482.0,99481.0,0.201133]
[1738007501367,0.00615078,99482.0,99481.0,0.201133]
[1738007501872,0.00615078,99482.0,99481.0,1.701133]
[1738007512579,0.00615078,99482.0,99481.0,0.201133]
[1738007512767,0.20728178,99482.0,99481.0,0.201133]
[1738007512968,0.06215078,99482.0,99463.0,0.00015078]
[1738007513168,0.1147,99481.0,99470.0,1.5]
[1738007513378,0.20114,99478.0,99477.0,0.201141]
[1738007513574,0.1147,99481.0,99470.0,1.5006]
[1738007513778,0.201151,99473.0,99472.0,0.201151]
[1738007514166,0.20114,99478.0,99477.0,0.201141]
[1738007514479,0.1147,99481.0,99480.0,0.201135]
[1738007514677,0.0572,99481.0,99480.0,0.201135]
[1738007515670,0.00015078,99482.0,99481.0,0.201133]
[1738007516382,0.00015078,99482.0,99481.0,1.701133]
[1738007517377,0.00215078,99482.0,99481.0,1.701133]
[1738007517872,0.1138,99509.0,99484.0,0.050281]
[1738007518177,0.1138,99509.0,99508.0,0.201079]
[1738007518379,0.314877,99509.0,99508.0,0.201079]
[1738007518583,0.201097,99499.0,99492.0,0.3608]
[1738007518781,0.0558,99498.0,99493.0,1.5]
[1738007518982,0.0558,99498.0,99497.0,0.201101]
[1738007519684,0.4166,99498.0,99492.0,0.20111]
[1738007519879,0.201101,99497.0,99489.0,0.201117]
[1738007520071,0.3608,99490.0,99475.0,0.057]
[1738007520268,0.201121,99487.0,99473.0,0.201149]
[1738007520467,0.3608,99490.0,99466.0,0.54124226]
[1738007520673,0.3608,99490.0,99467.0,1.5]
[1738007520674,0.20116,99468.0,99467.0,1.5]
[1738007521181,0.20116,99468.0,99466.0,0.18044226]
[1738007521182,0.201162,99467.0,99466.0,0.18044226]
[1738007521483,0.259962,99467.0,99466.0,0.18044226]
[1738007523192,0.0588,99467.0,99463.0,0.201169]
[1738007523484,0.201168,99464.0,99463.0,0.201169]
[1738007523685,0.0552,99466.0,99457.0,0.00015078]
[1738007523906,0.0552,99466.0,99465.0,0.201166]
[1738007524105,0.0552,99466.0,99457.0,0.00015078]
[1738007524298,0.0552,99466.0,99463.0,0.001]
[1738007524603,0.201168,99464.0,99463.0,0.001]
[1738007524789,0.201168,99464.0,99463.0,0.003]
[1738007525203,0.0552,99466.0,99461.0,0.201173]
[1738007525507,0.201172,99462.0,99461.0,0.201173]
[1738007527002,0.055,99463.0,99461.0,0.201173]
[1738007527506,0.25617,99463.0,99461.0,0.203173]
[1738007527804,0.25617,99463.0,99461.0,0.002]
[1738007528007,0.25617,99463.0,99462.0,1.5]
[1738007528401,0.25617,99463.0,99461.0,0.003]
[1738007528597,0.25617,99463.0,99457.0,0.00015078]
[1738007528598,0.055,99463.0,99457.0,0.00015078]
[1738007528794,0.20118,99458.0,99457.0,0.00015078]